bitfinex/quotes_BTCUSD_20240927
["timestamp","ask_amount","ask_price","bid_price","bid_amount"]
[1727438556975,0.003828,65544.0,65543.0,0.65130692]
[1727438557199,0.003828,65544.0,65543.0,0.65630692]
[1727438559761,0.003828,65544.0,65543.0,0.65130692]
[1727438562031,0.003828,65544.0,65543.0,0.65330692]
[1727438562258,0.003828,65544.0,65543.0,0.65130692]
[1727438564412,0.003828,65544.0,65543.0,0.82600692]
[1727438565242,0.00351776,65544.0,65543.0,0.82600692]
[1727438565864,0.00351776,65544.0,65543.0,0.83100692]
[1727438566078,0.00351776,65544.0,65543.0,1.21495315]
[1727438566291,0.00351776,65544.0,65543.0,1.07807802]
[1727438567140,0.00351776,65544.0,65543.0,1.05560692]
[1727438567560,0.00351776,65544.0,65543.0,1.05570679]
[1727438567991,0.00351776,65544.0,65543.0,2.96914379]
[1727438568217,0.00351776,65544.0,65543.0,2.67912979]
[1727438568426,0.00351776,65544.0,65543.0,2.71154979]
[1727438568637,0.00351776,65544.0,65543.0,2.76432469]
[1727438570822,0.00351776,65544.0,65543.0,2.73191754]
[1727438571252,0.00351776,65544.0,65543.0,2.71166294]
[1727438571458,0.00351776,65544.0,65543.0,2.8049393]
[1727438571667,0.00351776,65544.0,65543.0,2.77249535]
[1727438571878,0.00351776,65544.0,65543.0,2.80493539]
[1727438572107,0.00351776,65544.0,65543.0,2.74410553]
[1727438572328,0.00351776,65544.0,65543.0,2.71166294]
[1727438572756,0.00351776,65544.0,65543.0,2.74412677]
[1727438574986,0.000828,65552.0,65551.0,0.257552]
[1727438575198,0.000828,65552.0,65551.0,1.19830087]
[1727438575410,0.000828,65552.0,65551.0,1.3849658]
[1727438576624,0.001828,65552.0,65551.0,1.3949658]
[1727438577461,0.001828,65552.0,65551.0,1.5673658]
[1727438577675,0.002828,65552.0,65551.0,1.45148438]
[1727438578333,0.002828,65552.0,65551.0,1.65358347]
[1727438578607,0.001828,65552.0,65551.0,1.64258347]
[1727438578812,0.001828,65552.0,65551.0,1.45148438]
[1727438578813,0.002828,65552.0,65551.0,1.45148438]
[1727438579022,0.002828,65552.0,65551.0,1.44048438]
[1727438579239,0.002828,65552.0,65551.0,2.14048438]
[1727438579451,0.003828,65552.0,65551.0,2.15248438]
[1727438579661,0.000828,65552.0,65551.0,2.09802055]
[1727438579872,0.000828,65552.0,65551.0,2.13027644]
[1727438580089,0.000828,65552.0,65551.0,2.1342885]
[1727438580298,0.000828,65552.0,65551.0,2.1482885]
[1727438580935,0.000828,65552.0,65551.0,2.1342885]
[1727438581157,0.001828,65552.0,65551.0,2.1452885]
[1727438581388,0.001828,65552.0,65551.0,1.4592885]
[1727438581873,0.001828,65552.0,65551.0,1.66138759]
[1727438582139,0.001828,65552.0,65551.0,1.4592885]
[1727438582557,0.001828,65552.0,65551.0,1.66138759]
[1727438582988,0.001828,65552.0,65551.0,1.6613931]
[1727438583889,0.001828,65552.0,65551.0,1.52776511]
[1727438584108,0.001828,65552.0,65551.0,0.35081006]
[1727438584109,0.079828,65552.0,65551.0,0.35081006]
[1727438584324,0.079828,65552.0,65551.0,0.2098134]
[1727438584564,0.079828,65552.0,65551.0,0.17142906]
[1727438584779,0.079828,65552.0,65551.0,0.0572614]
[1727438585001,0.079828,65552.0,65551.0,0.30116518]
[1727438585433,0.07851776,65552.0,65551.0,0.29016518]
[1727438585641,0.07951776,65552.0,65551.0,0.2098134]
[1727438585852,0.07951776,65552.0,65551.0,0.3098134]
[1727438586355,0.07951776,65552.0,65551.0,0.29600176]
[1727438586571,0.07951776,65552.0,65551.0,0.42216942]
[1727438587483,0.07951776,65552.0,65551.0,0.30800176]
[1727438590315,0.07951776,65552.0,65551.0,0.50291142]
[1727438590531,0.00151776,65552.0,65551.0,0.50291142]
[1727438590743,0.00151776,65552.0,65551.0,0.79536801]
[1727438590967,0.00151776,65552.0,65551.0,0.66019936]
[1727438591185,0.00151776,65552.0,65551.0,1.68371636]
[1727438591419,0.00151776,65552.0,65551.0,1.35669236]
[1727438591601,0.00151776,65552.0,65551.0,1.31094336]
[1727438591812,0.00151776,65552.0,65551.0,0.94210236]
[1727438592045,0.00151776,65552.0,65551.0,0.65819936]
[1727438592254,0.00151776,65552.0,65551.0,1.30998936]
[1727438592464,0.00151776,65552.0,65551.0,0.96353136]
[1727438592678,0.00151776,65552.0,65551.0,0.77646636]
[1727438593129,0.00151776,65552.0,65551.0,0.65819936]
[1727438593807,0.00151776,65552.0,65551.0,1.14360336]
[1727438594062,0.00151776,65552.0,65551.0,0.65819936]
[1727438594737,0.00151776,65552.0,65551.0,1.44453336]
[1727438594958,0.00151776,65552.0,65551.0,1.44653336]
[1727438595220,0.00151776,65552.0,65551.0,1.44453336]
[1727438596902,0.00151776,65552.0,65551.0,1.27473036]
[1727438597783,0.00151776,65552.0,65551.0,1.24907436]
[1727438597997,0.00151776,65552.0,65551.0,1.12907436]
[1727438598631,0.00151776,65552.0,65551.0,1.10030936]
[1727438599653,0.00151776,65552.0,65551.0,1.0678596]
[1727438599835,0.00151776,65552.0,65551.0,1.10012938]
[1727438600235,0.00133413,65552.0,65551.0,1.10012938]
[1727438600862,0.00133413,65552.0,65551.0,0.81524238]
[1727438601036,0.00133413,65552.0,65551.0,0.79524238]
[1727438601494,0.00133413,65552.0,65551.0,0.79689838]
[1727438603083,0.00133413,65552.0,65551.0,0.7646286]
[1727438603293,0.00133413,65552.0,65551.0,0.7969216]
[1727438604362,0.00133413,65552.0,65551.0,0.84978739]
[1727438604579,0.00133413,65552.0,65551.0,0.7969216]
[1727438605473,0.0010234,65552.0,65551.0,1.05231734]
[1727438605851,0.0010234,65552.0,65551.0,0.7969216]
[1727438606281,0.0010234,65552.0,65551.0,0.84978775]
[1727438606498,0.0010234,65552.0,65551.0,0.7969216]
[1727438606719,0.0010234,65552.0,65551.0,0.7646286]
[1727438606927,0.0010234,65552.0,65551.0,0.79690641]
[1727438607363,0.0010234,65552.0,65551.0,1.05230285]
[1727438607567,0.0010234,65552.0,65551.0,0.99943626]
[1727438608395,0.0010234,65552.0,65551.0,1.05230323]
[1727438609017,0.0010234,65552.0,65551.0,0.91508023]
[1727438609211,0.0010234,65552.0,65551.0,1.54815223]
[1727438609889,0.0010234,65552.0,65551.0,1.35262238]
[1727438610123,0.0010234,65552.0,65551.0,1.36262238]
[1727438610335,0.0010234,65552.0,65551.0,1.46372238]
[1727438610747,0.0010234,65552.0,65551.0,1.45172238]
[1727438611112,0.0010234,65552.0,65551.0,1.46372238]
[1727438611690,2.34e-05,65552.0,65551.0,1.45272238]
[1727438611897,2.34e-05,65552.0,65551.0,1.46672238]
[1727438612954,2.34e-05,65552.0,65551.0,1.45472238]
[1727438613391,2.34e-05,65552.0,65551.0,1.46872238]
[1727438613617,2.34e-05,65552.0,65551.0,1.46851855]
[1727438617403,2.34e-05,65552.0,65551.0,1.39041855]
[1727438619119,2.34e-05,65552.0,65551.0,1.13832755]
[1727438619301,2.34e-05,65552.0,65551.0,1.11504755]
[1727438619550,2.34e-05,65552.0,65551.0,1.11704755]
[1727438620856,2.34e-05,65552.0,65551.0,0.63844389]
[1727438621063,2.34e-05,65552.0,65551.0,0.83335355]
[1727438621576,2.34e-05,65552.0,65551.0,0.82835355]
[1727438622684,2.34e-05,65552.0,65551.0,0.82335355]
[1727438622894,2.34e-05,65552.0,65551.0,0.82835355]
[1727438623942,2.34e-05,65552.0,65551.0,0.79627957]
[1727438624156,2.34e-05,65552.0,65551.0,0.79127957]
[1727438624386,2.34e-05,65552.0,65551.0,0.85126127]
[1727438624998,2.34e-05,65552.0,65551.0,0.71726827]
[1727438625463,0.09781243,65553.0,65552.0,0.25255]
[1727438625675,0.09781243,65553.0,65552.0,0.49270061]
[1727438625920,0.09781243,65553.0,65552.0,0.72568861]
[1727438626425,0.09781243,65553.0,65552.0,0.85356113]
[1727438626900,0.09781243,65553.0,65552.0,1.07010928]
[1727438628586,0.09781243,65553.0,65552.0,1.08410928]
[1727438629525,0.09781243,65553.0,65552.0,1.08411851]
[1727438630252,0.000827,65557.0,65552.0,0.93156851]
[1727438630480,0.000827,65557.0,65556.0,0.38041352]
[1727438630681,0.000827,65557.0,65556.0,0.41240922]
[1727438632194,0.000827,65557.0,65556.0,0.42640922]
[1727438632418,0.000827,65557.0,65556.0,0.44635611]
[1727438632861,0.000827,65557.0,65556.0,0.46035611]
[1727438633302,0.000827,65557.0,65556.0,0.50024989]
[1727438634012,0.000827,65557.0,65556.0,0.78791989]
[1727438634425,0.000827,65557.0,65556.0,0.76561589]
[1727438634871,0.000827,65557.0,65556.0,0.67377952]
[1727438635310,0.000827,65557.0,65556.0,0.40841352]
[1727438635516,0.00051624,65557.0,65556.0,0.40841352]
[1727438636697,0.00051624,65557.0,65556.0,0.41234524]
[1727438640017,0.00051624,65557.0,65556.0,0.50447317]
[1727438643910,0.00051624,65557.0,65556.0,0.43237305]
[1727438644137,0.00051624,65557.0,65556.0,0.41234524]
[1727438646153,0.00051624,65557.0,65556.0,0.50483952]
[1727438646592,0.000827,65559.0,65557.0,0.1]
[1727438646832,0.000827,65559.0,65558.0,0.34503028]
[1727438648394,0.000827,65559.0,65558.0,0.35903028]
[1727438649270,0.000827,65559.0,65558.0,0.37203028]
[1727438649708,0.000827,65559.0,65558.0,0.35903028]
[1727438649926,0.000827,65559.0,65558.0,0.34503028]
[1727438650148,0.000827,65559.0,65558.0,0.36403028]
[1727438650609,0.12705065,65560.0,65559.0,0.252534]
[1727438650830,0.12705065,65560.0,65559.0,0.34502828]
[1727438651712,0.12705065,65560.0,65559.0,0.261534]
[1727438651935,0.12705065,65560.0,65559.0,0.35309246]
[1727438652360,0.12705065,65560.0,65559.0,0.36109246]
[1727438654109,0.1689,65564.0,65559.0,0.20855846]
[1727438654330,0.1689,65564.0,65563.0,0.252525]
[1727438654590,0.001656,65578.0,65572.0,0.252504]
[1727438654813,0.098856,65578.0,65577.0,0.28036452]
[1727438655044,0.098856,65578.0,65577.0,0.43211495]
[1727438655258,0.180956,65578.0,65577.0,0.36691246]
[1727438655478,0.18064502,65578.0,65577.0,0.38681489]
[1727438655697,0.18064502,65578.0,65577.0,0.30423832]
[1727438656148,0.18264502,65578.0,65577.0,0.30423832]
[1727438656363,0.18064502,65578.0,65577.0,0.30423832]
[1727438656592,0.18064502,65578.0,65577.0,0.30623832]
[1727438657937,0.18064502,65578.0,65577.0,0.36688117]
[1727438662783,0.18064502,65578.0,65577.0,0.27539443]
[1727438665369,0.18064502,65578.0,65577.0,0.34396236]
[1727438665594,0.18033429,65578.0,65577.0,0.34396236]
[1727438666060,0.18033429,65578.0,65577.0,0.34384418]
[1727438668040,0.00103429,65578.0,65577.0,0.34384418]
[1727438669414,0.00103429,65578.0,65577.0,0.34382545]
[1727438674564,0.00103429,65578.0,65577.0,0.34381128]
[1727438675264,0.00103429,65578.0,65577.0,0.52209922]
[1727438675504,0.00103429,65578.0,65577.0,0.564219]
[1727438675721,0.00103429,65578.0,65577.0,1.130495]
[1727438675956,0.00103429,65578.0,65577.0,0.86295151]
[1727438676163,0.00103429,65578.0,65577.0,0.86795151]
[1727438676365,0.00103429,65578.0,65577.0,1.22864082]
[1727438676571,0.00103429,65578.0,65577.0,1.03924829]
[1727438676985,0.00103429,65578.0,65577.0,1.03424829]
[1727438677208,0.00103429,65578.0,65577.0,0.98289345]
[1727438677409,0.00103429,65578.0,65577.0,1.02544199]
[1727438677617,0.00103429,65578.0,65577.0,1.24159242]
[1727438678226,0.00103429,65578.0,65577.0,1.03944199]
[1727438678445,0.00103429,65578.0,65577.0,1.05244199]
[1727438678866,0.00103429,65578.0,65577.0,1.03744199]
[1727438679078,0.00103429,65578.0,65577.0,0.99864521]
[1727438679294,0.00103429,65578.0,65577.0,0.95899248]
[1727438679499,0.00103429,65578.0,65577.0,0.99864521]
[1727438679722,0.00103429,65578.0,65577.0,1.086865]
[1727438680810,0.00103429,65578.0,65577.0,1.059678]
[1727438681033,0.00103429,65578.0,65577.0,1.054678]
[1727438681251,0.00103429,65578.0,65577.0,0.92680548]
[1727438681461,0.00103429,65578.0,65577.0,1.029815]
[1727438681678,0.00103429,65578.0,65577.0,0.643201]
[1727438685095,0.00103429,65578.0,65577.0,0.51032848]
[1727438685325,0.00103429,65578.0,65577.0,0.538201]
[1727438685572,0.00072342,65578.0,65577.0,0.62939488]
[1727438685778,0.00072342,65578.0,65577.0,0.57487583]
[1727438685990,0.00072342,65578.0,65577.0,0.60659801]
[1727438686197,0.00072342,65578.0,65577.0,0.57487583]
[1727438686409,0.00072342,65578.0,65577.0,0.638201]
[1727438686615,0.00072342,65578.0,65577.0,0.70825201]
[1727438688218,0.00072342,65578.0,65577.0,0.70802979]
[1727438689552,0.00072342,65578.0,65577.0,0.71893278]
[1727438689970,0.00072342,65578.0,65577.0,0.75882092]
[1727438690176,0.00072342,65578.0,65577.0,0.81018346]
[1727438691894,0.00072342,65578.0,65577.0,0.75882092]
[1727438692106,0.00072342,65578.0,65577.0,0.73086451]
[1727438692547,0.00072342,65578.0,65577.0,0.63965005]
[1727438694054,0.00072342,65578.0,65577.0,1.81739364]
[1727438694266,0.00072342,65578.0,65577.0,1.84639513]
[1727438694480,0.00072342,65578.0,65577.0,1.85639513]
[1727438695126,0.00072342,65578.0,65577.0,1.85839513]
[1727438695572,0.00041268,65578.0,65577.0,1.80705154]
[1727438696023,0.00041268,65578.0,65577.0,1.80704664]
[1727438696524,0.00041268,65578.0,65577.0,1.82669053]
[1727438697646,0.00041268,65578.0,65577.0,1.83847687]
[1727438698292,0.00041268,65578.0,65577.0,1.8895811]
[1727438699566,0.00041268,65578.0,65577.0,1.83680092]
[1727438701131,0.00041268,65578.0,65577.0,1.78572713]
[1727438701350,0.00041268,65578.0,65577.0,1.80539004]
[1727438702704,0.00041268,65578.0,65577.0,1.85818393]
[1727438704656,0.00041268,65578.0,65577.0,1.85618393]
[1727438705545,0.00041268,65578.0,65577.0,2.05841153]
[1727438706665,0.00041268,65578.0,65577.0,1.85618393]
[1727438707100,0.00041268,65578.0,65577.0,2.05841153]
[1727438707325,0.00041268,65578.0,65577.0,2.00728795]
[1727438707545,0.00041268,65578.0,65577.0,1.85594855]
[1727438707780,0.00041268,65578.0,65577.0,2.05817615]
[1727438707999,0.00041268,65578.0,65577.0,1.08881615]
[1727438708218,0.00041268,65578.0,65577.0,4.69677815]
[1727438708665,0.00041268,65578.0,65577.0,4.49455055]
[1727438709103,0.00041268,65578.0,65577.0,4.49655055]
[1727438709761,0.00041268,65578.0,65577.0,4.69880401]
[1727438709986,0.00041268,65578.0,65577.0,4.49655055]
[1727438710698,0.001654,65586.0,65580.0,0.001]
[1727438710913,0.001654,65586.0,65580.0,4.74696854]
[1727438711127,0.001654,65586.0,65585.0,0.38734552]
[1727438711360,0.001654,65586.0,65585.0,4.21794641]
[1727438711575,0.001654,65586.0,65585.0,4.38862998]
[1727438711806,0.001654,65586.0,65585.0,4.38662998]
[1727438712679,0.001654,65586.0,65585.0,3.27917098]
[1727438713131,0.001654,65586.0,65585.0,2.59353398]
[1727438713357,0.001654,65586.0,65585.0,2.51346098]
[1727438713572,0.001654,65586.0,65585.0,1.87010498]
[1727438714681,0.001654,65586.0,65585.0,1.87024957]
[1727438715578,0.00134302,65586.0,65585.0,1.87024957]
[1727438717336,0.00134302,65586.0,65585.0,1.87027205]
[1727438718191,0.00134302,65586.0,65585.0,1.87030024]
[1727438718405,0.00134302,65586.0,65585.0,1.81750635]
[1727438719035,0.00134302,65586.0,65585.0,1.82149078]
[1727438719484,0.00134302,65586.0,65585.0,1.76519378]
[1727438721824,0.00134302,65586.0,65585.0,1.76525177]
[1727438722293,0.00134302,65586.0,65585.0,1.76690577]
[1727438722772,0.00134302,65586.0,65585.0,1.81972944]
[1727438723021,0.00134302,65586.0,65585.0,1.17578444]
[1727438724486,0.00134302,65586.0,65585.0,0.70107044]
[1727438724731,0.00134302,65586.0,65585.0,2.52648144]
[1727438725198,0.00134302,65586.0,65585.0,2.32600644]
[1727438725425,0.00134302,65586.0,65585.0,2.30040644]
[1727438725641,0.00103218,65586.0,65585.0,2.25420644]
[1727438725875,0.00103218,65586.0,65585.0,1.89642344]
[1727438728740,0.00103218,65586.0,65585.0,1.89667254]
[1727438728997,0.00103218,65586.0,65585.0,1.71491654]
[1727438729890,0.00103218,65586.0,65585.0,1.38814054]
[1727438730113,0.00103218,65586.0,65585.0,1.37642754]
[1727438730574,0.00103218,65586.0,65585.0,1.01927402]
[1727438730849,0.09513218,65586.0,65585.0,0.51562335]
[1727438731088,0.09513218,65586.0,65585.0,0.41562335]
[1727438731777,0.09513218,65586.0,65585.0,0.40162335]
[1727438732034,0.09513218,65586.0,65585.0,0.41362335]
[1727438732251,0.09513218,65586.0,65585.0,0.39962335]
[1727438732501,0.00103218,65586.0,65585.0,0.51262335]
[1727438734189,0.00103218,65586.0,65585.0,0.35733541]
[1727438735296,0.00103218,65586.0,65585.0,0.30611143]
[1727438735540,0.00103218,65586.0,65585.0,0.3576536]
[1727438736922,0.00103218,65586.0,65585.0,0.51294154]
[1727438737157,0.00103218,65586.0,65585.0,1.10074233]
[1727438737389,0.00103218,65586.0,65585.0,0.96361254]
[1727438737615,0.00103218,65586.0,65585.0,0.90895733]
[1727438737822,0.00103218,65586.0,65585.0,0.51294154]
[1727438738487,0.00103218,65586.0,65585.0,0.64081406]
[1727438738673,0.00103218,65586.0,65585.0,0.77794385]
[1727438739531,0.00103218,65586.0,65585.0,0.64032772]
[1727438740916,0.17533218,65586.0,65585.0,0.35716726]
[1727438742914,0.17533218,65586.0,65585.0,0.33759974]
[1727438743129,0.17533218,65586.0,65585.0,0.35727993]
[1727438744566,0.17533218,65586.0,65585.0,0.3532955]
[1727438745023,0.17533218,65586.0,65585.0,0.44476174]
[1727438745474,0.17533218,65586.0,65585.0,0.41327343]
[1727438745680,0.17502095,65586.0,65585.0,0.40127343]
[1727438746560,0.17602095,65586.0,65585.0,0.38827343]
[1727438746780,0.17602095,65586.0,65585.0,0.39327343]
[1727438747209,0.17602095,65586.0,65585.0,0.38827343]
[1727438747423,0.17602095,65586.0,65585.0,0.29680719]
[1727438747851,0.17502095,65586.0,65585.0,0.29680719]
[1727438748281,0.17602095,65586.0,65585.0,0.29680719]
[1727438748513,0.17602095,65586.0,65585.0,0.14433419]
[1727438748751,0.17602095,65586.0,65585.0,0.001654]
[1727438748752,0.32849195,65586.0,65585.0,0.001654]
[1727438748965,0.45636447,65586.0,65585.0,0.001654]
[1727438750530,0.61165241,65586.0,65585.0,0.001654]
[1727438750748,0.61165241,65586.0,65577.0,0.001654]
[1727438750749,0.32129,65578.0,65577.0,0.001654]
[1727438751863,0.32329,65578.0,65577.0,0.002654]
[1727438752045,0.32329,65578.0,65577.0,0.003654]
[1727438756057,0.32329,65578.0,65577.0,0.026654]
[1727438759163,0.32329,65578.0,65577.0,0.003654]
[1727438759164,0.32298076,65578.0,65577.0,0.003654]
[1727438760001,0.1708,65578.0,65577.0,0.026654]
[1727438760208,0.1708,65578.0,65577.0,0.179146]
[1727438760209,0.0803,65578.0,65577.0,0.179146]
[1727438760423,0.0803,65578.0,65577.0,0.279146]
[1727438760424,0.002,65578.0,65577.0,0.279146]
[1727438761061,0.1796,65583.0,65581.0,0.123]
[1727438761541,0.1796,65583.0,65582.0,0.023]
[1727438762164,0.1816,65583.0,65582.0,0.023]
[1727438762369,0.334078,65583.0,65580.0,0.1]
[1727438762609,0.334078,65583.0,65581.0,0.123]
[1727438762610,0.1816,65583.0,65581.0,0.123]
[1727438762810,0.1816,65583.0,65579.0,0.023]
[1727438763020,0.334079,65583.0,65579.0,0.023]
[1727438763227,0.1816,65583.0,65579.0,0.023]
[1727438763442,0.1806,65583.0,65581.0,0.123]
[1727438763639,0.1796,65583.0,65582.0,0.023]
[1727438764062,0.1836,65583.0,65582.0,0.023]
[1727438764266,0.1826,65583.0,65582.0,0.023]
[1727438764473,0.1836,65583.0,65582.0,0.023]
[1727438764684,0.1836,65583.0,65581.0,0.1]
[1727438764883,0.1826,65583.0,65582.0,0.023]
[1727438765092,0.1836,65583.0,65582.0,0.023]
[1727438765299,0.1836,65583.0,65581.0,0.023]
[1727438765511,0.1836,65583.0,65581.0,0.175482]
[1727438766592,0.1836,65583.0,65581.0,0.023]
[1727438766593,0.1796,65583.0,65581.0,0.023]
[1727438766810,0.1806,65583.0,65581.0,0.023]
[1727438767019,0.1836,65583.0,65581.0,0.175482]
[1727438767218,0.1836,65583.0,65582.0,0.17548]
[1727438768004,0.0833,65583.0,65582.0,0.17548]
[1727438768658,0.0823,65583.0,65581.0,0.175482]
[1727438768869,0.23778,65583.0,65581.0,0.023]
[1727438769091,0.237779,65583.0,65581.0,0.023]
[1727438769336,0.0966,65582.0,65580.0,0.123]
[1727438770055,0.235683,65581.0,65580.0,0.123]
[1727438770307,0.235683,65581.0,65580.0,0.023]
[1727438770556,0.235683,65581.0,65578.0,0.001654]
[1727438770557,0.457456,65580.0,65579.0,0.023]
[1727438771735,0.152485,65580.0,65579.0,0.024]
[1727438772197,0.0832,65581.0,65579.0,0.024]
[1727438772426,0.235683,65581.0,65579.0,0.024]
[1727438772644,0.0832,65581.0,65579.0,0.024]
[1727438773323,0.0832,65581.0,65579.0,0.124]
[1727438773547,0.0832,65581.0,65579.0,0.123]
[1727438774020,0.0862,65581.0,65579.0,0.124]
[1727438774450,0.152485,65580.0,65579.0,0.024]
[1727438774942,0.0872,65581.0,65579.0,0.124]
[1727438775166,0.239684,65581.0,65579.0,0.024]
[1727438775394,0.0862,65581.0,65579.0,0.024]
[1727438775612,0.153485,65580.0,65579.0,0.024]
[1727438776024,0.001,65580.0,65579.0,0.023]
[1727438776632,0.235684,65581.0,65579.0,0.023]
[1727438777074,0.236684,65581.0,65579.0,0.023]
[1727438777508,0.155485,65580.0,65579.0,0.023]
[1727438777940,0.152485,65580.0,65579.0,0.023]
[1727438778153,0.152485,65580.0,65579.0,0.024]
[1727438778617,0.152485,65580.0,65579.0,0.023]
[1727438779055,0.003,65580.0,65579.0,0.023]
[1727438779282,0.003,65580.0,65579.0,0.123]
[1727438779283,0.004,65580.0,65579.0,0.123]
[1727438779713,0.004,65580.0,65579.0,0.275487]
[1727438779936,0.004,65580.0,65579.0,0.123]
[1727438780167,0.004,65580.0,65579.0,0.275487]
[1727438780664,0.004,65580.0,65579.0,0.023]
[1727438781158,0.004,65580.0,65579.0,0.275487]
[1727438782436,0.0835,65580.0,65579.0,0.275487]
[1727438782884,0.0835,65580.0,65579.0,0.023]
[1727438782885,0.084327,65580.0,65579.0,0.023]
[1727438783112,0.332612,65580.0,65579.0,0.023]
[1727438783338,0.152487,65579.0,65578.0,0.001654]
[1727438783767,0.30777494,65579.0,65578.0,0.001654]
[1727438784660,0.31077494,65579.0,65578.0,0.001654]
[1727438784873,0.31177494,65579.0,65578.0,0.001654]
[1727438788312,0.49367494,65579.0,65578.0,0.001654]
[1727438788539,0.50367494,65579.0,65578.0,0.001654]
[1727438788757,0.50567494,65579.0,65578.0,0.001654]
[1727438790439,0.50467494,65579.0,65578.0,0.001654]
[1727438790654,0.50967494,65579.0,65578.0,0.002654]
[1727438790871,0.50467494,65579.0,65578.0,0.001654]
[1727438791090,0.50167494,65579.0,65578.0,0.001654]
[1727438791304,0.50667494,65579.0,65578.0,0.002654]
[1727438791550,0.51467494,65579.0,65578.0,0.003654]
[1727438791798,0.70743491,65579.0,65578.0,0.003654]
[1727438792214,0.69943491,65579.0,65578.0,0.002654]
[1727438792423,0.71143491,65579.0,65578.0,0.003654]
[1727438792882,0.69943491,65579.0,65578.0,0.002654]
[1727438793528,0.69443491,65579.0,65578.0,0.001654]
[1727438793748,0.49467494,65579.0,65578.0,0.002654]
[1727438793964,0.77258294,65579.0,65578.0,0.002654]
[1727438794193,0.77258294,65579.0,65578.0,0.001654]
[1727438794194,0.76758294,65579.0,65578.0,0.001654]
[1727438794428,0.78058294,65579.0,65578.0,0.003654]
[1727438794656,0.77058294,65579.0,65578.0,0.002654]
[1727438794874,0.76758294,65579.0,65578.0,0.001654]
[1727438795088,0.77558294,65579.0,65578.0,0.003654]
[1727438806860,0.77558294,65579.0,65556.0,0.001654]
[1727438806861,0.305037,65566.0,65556.0,0.001654]
[1727438807070,0.35229897,65557.0,65556.0,0.001654]
[1727438807309,0.36429897,65557.0,65556.0,0.001654]
[1727438807526,0.44039897,65557.0,65556.0,0.001654]
[1727438807751,0.44039897,65557.0,65552.0,0.001656]
[1727438807752,0.154548,65553.0,65552.0,0.001656]
[1727438807981,0.38593594,65553.0,65552.0,0.001656]
[1727438808415,0.58569591,65553.0,65552.0,0.001656]
[1727438809307,0.59069591,65553.0,65552.0,0.002656]
[1727438809977,0.74708397,65553.0,65552.0,0.002656]
[1727438810189,0.76108397,65553.0,65552.0,0.003656]
[1727438812178,0.75908397,65553.0,65552.0,0.003656]
[1727438812694,0.76108397,65553.0,65552.0,0.003656]
[1727438812910,0.75908397,65553.0,65552.0,0.003656]
[1727438813117,0.60269591,65553.0,65552.0,0.003656]
[1727438813340,0.60469591,65553.0,65552.0,0.003656]
[1727438814440,0.60451232,65553.0,65552.0,0.003656]
[1727438815345,0.60251232,65553.0,65552.0,0.003656]
[1727438815770,0.60451232,65553.0,65552.0,0.003656]
[1727438817060,0.76090038,65553.0,65552.0,0.003656]
[1727438820100,1.0917246,65553.0,65552.0,0.003656]
[1727438820337,1.0917246,65553.0,65535.0,0.001654]
[1727438820338,0.159569,65544.0,65535.0,0.001654]
[1727438820576,0.68801691,65544.0,65535.0,0.001654]
[1727438820810,0.68601691,65544.0,65535.0,0.001654]
[1727438821063,0.68801691,65544.0,65535.0,0.001654]
[1727438821351,0.68801691,65544.0,65543.0,0.003456]
[1727438821578,0.71601691,65544.0,65543.0,0.004456]
[1727438821791,0.71601691,65544.0,65543.0,0.003456]
[1727438822010,0.71601691,65544.0,65543.0,0.004456]
[1727438822011,0.72001691,65544.0,65543.0,0.004456]
[1727438822237,0.73001691,65544.0,65543.0,0.004456]
[1727438823674,0.71601691,65544.0,65543.0,0.003456]
[1727438823905,0.73001691,65544.0,65543.0,0.003456]
[1727438824118,0.72501691,65544.0,65543.0,0.003456]
[1727438824358,0.54461691,65544.0,65543.0,0.003456]
[1727438824585,0.62776494,65544.0,65543.0,0.026456]
[1727438825477,0.44719594,65544.0,65543.0,0.025456]
[1727438825708,0.61376494,65544.0,65543.0,0.025456]
[1727438825958,0.59976494,65544.0,65543.0,0.025456]
[1727438826192,0.58576494,65544.0,65543.0,0.025456]
[1727438827093,0.59976494,65544.0,65543.0,0.025456]
[1727438827583,0.59676494,65544.0,65543.0,0.025456]
[1727438827755,0.58576494,65544.0,65543.0,0.025456]
[1727438828061,0.59676494,65544.0,65543.0,0.025456]
[1727438828716,0.60676494,65544.0,65543.0,0.025456]
[1727438829551,0.298908,65544.0,65543.0,0.025456]
[1727438829756,0.298908,65544.0,65543.0,0.354927]
[1727438830524,0.287908,65544.0,65543.0,0.354927]
[1727438830937,0.281908,65544.0,65543.0,0.354927]
[1727438831132,0.284908,65544.0,65543.0,0.354927]
[1727438831367,0.280908,65544.0,65543.0,0.354927]
[1727438831784,0.284908,65544.0,65543.0,0.354927]
[1727438832347,0.281908,65544.0,65543.0,0.354927]
[1727438832750,0.284908,65544.0,65543.0,0.354927]
[1727438833002,0.280908,65544.0,65543.0,0.354927]
[1727438833423,0.284908,65544.0,65543.0,0.354927]
[1727438834040,0.277908,65544.0,65543.0,0.354927]
[1727438834280,0.280908,65544.0,65543.0,0.354927]
[1727438835529,0.280908,65544.0,65543.0,0.354508]
[1727438842136,0.003,65544.0,65543.0,0.354508]
[1727438846135,0.004656,65544.0,65543.0,0.354508]
[1727438852100,0.004656,65544.0,65543.0,0.37342103]
[1727438852617,0.004656,65544.0,65543.0,0.37342105]
[1727438856416,0.004656,65544.0,65543.0,0.354508]
[1727438856669,0.004656,65544.0,65543.0,0.37340084]
[1727438860019,0.004656,65544.0,65543.0,0.46650084]
[1727438860286,0.004656,65544.0,65543.0,0.51220405]
[1727438860743,0.004656,65544.0,65543.0,0.46650084]
[1727438861198,0.004656,65544.0,65543.0,0.55790726]
[1727438861381,0.004656,65544.0,65543.0,0.58075886]
[1727438861643,0.004656,65544.0,65543.0,0.7360468]
[1727438861870,0.004656,65544.0,65543.0,0.62178878]
[1727438862096,0.002656,65544.0,65543.0,0.86394328]
[1727438862325,0.002656,65544.0,65543.0,0.74974248]
[1727438863027,0.003656,65544.0,65543.0,0.75274248]
[1727438863246,0.002656,65544.0,65543.0,0.75274248]
[1727438863465,0.002656,65544.0,65543.0,0.74974248]
[1727438863681,0.003656,65544.0,65543.0,0.75274248]
[1727438863902,0.002656,65544.0,65543.0,0.75274248]
[1727438864912,0.003656,65544.0,65543.0,0.75274248]
[1727438865914,0.003656,65544.0,65543.0,0.75474248]
[1727438866158,0.003656,65544.0,65543.0,0.75274248]
[1727438867543,0.003656,65544.0,65543.0,0.75272257]